lending/lending_fUSD_20251107
["ID","MTS","AMOUNT","RATE_DAILY","PERIOD"]
[393373854,1762543832990,-500.0,0.00016689,2]
[393373855,1762543833001,-500.0,0.00016689,2]
[393373856,1762543833011,-500.0,0.00016689,2]
[393373857,1762543833020,-500.0,0.00016689,2]
[393373858,1762543833030,-466.00459491,0.00016689,2]
[393373859,1762543833039,-500.0,0.00016689,2]
[393373860,1762543833048,-500.0,0.00016689,2]
[393373861,1762543833058,-220106.97943799,0.0001669,2]
[393373862,1762543833071,-6895.11092951,0.0001669,2]
[393373863,1762543833082,-1171.87051943,0.0001669,2]
[393373864,1762543833099,-289.14843026,0.0001669,2]
[393373870,1762543838002,-191536.89068281,0.0001669,2]
[393373871,1762543838012,-1000.0,0.0001669,2]
[393373872,1762543838021,-1000.0,0.0001669,2]
[393373873,1762543838032,-5959.66084484,0.00016736,2]
[393373874,1762543838042,-211.47738152,0.00016736,2]
[393373876,1762543838052,-500.0,0.00016789,2]
[393373877,1762543838062,-2516.0,0.00016866,2]
[393373878,1762543838072,-5959.66084484,0.00016881,2]
[393373879,1762543838081,-211.47738152,0.00016881,2]
[393373880,1762543838091,-2516.0,0.00016896,2]
[393373881,1762543838104,-5000.0,0.000169,2]
[393373882,1762543838113,-690.54252196,0.00016922,2]
[393373883,1762543838124,-256.0,0.00016963,2]
[393373884,1762543838134,-341.0,0.00016969,2]
[393373885,1762543838144,-504.25926664,0.00016973,2]
[393373886,1762543838154,-481.92632213,0.00016973,2]
[393373887,1762543838164,-500.0,0.00016973,2]
[393373888,1762543838175,-341.0,0.0001699,2]
[393373889,1762543838185,-131616.34249303,0.0001699,2]
[393373890,1762543838195,-151.0,0.00016997,2]
[393373891,1762543838206,-500.0,0.00016999,2]
[393373892,1762543838216,-171760.67512561,0.00017,2]
[393373893,1762543838227,-166.66,0.00017022,2]
[393373894,1762543838238,-5959.66084484,0.00017027,2]
[393373895,1762543838249,-211.47738152,0.00017027,2]
[393373896,1762543838260,-150.0,0.00017073,2]
[393373897,1762543838271,-1900.0,0.000171,6]
[393373898,1762543838280,-5959.66084484,0.00017172,2]
[393373900,1762543838290,-211.47738152,0.00017172,2]
[393373902,1762543838300,-2900.0,0.000172,6]
[393373904,1762543838310,-596.14076774,0.00017221,2]
[393373906,1762543838321,-1000.0,0.00017221,2]
[393373908,1762543838331,-1000.0,0.00017221,2]
[393373910,1762543838340,-1003.58550355,0.00017221,2]
[393373912,1762543838351,-1000.0,0.00017221,2]
[393373914,1762543838361,-256.0,0.00017237,2]
[393373916,1762543838371,-341.0,0.00017256,2]
[393373918,1762543838381,-347.64,0.00017296,2]
[393373920,1762543838390,-3900.0,0.000173,6]
[393373922,1762543838400,-690.54252194,0.00017311,2]
[393373924,1762543838409,-5959.66084484,0.00017318,2]
[393373926,1762543838418,-211.47738152,0.00017318,2]
[393373928,1762543838428,-341.0,0.00017321,2]
[393373930,1762543838437,-578.81216164,0.00017361,2]
[393373932,1762543838447,-341.0,0.00017365,2]
[393373935,1762543838457,-4900.0,0.000174,6]
[393373937,1762543838467,-5959.66084484,0.00017463,2]
[393373939,1762543838476,-211.47738152,0.00017463,2]
[393373941,1762543838487,-341.0,0.00017482,2]
[393373943,1762543838496,-800.29344871,0.000175,2]
[393373945,1762543838506,-900.0,0.000175,6]
[393373947,1762543838515,-256.0,0.00017511,2]
[393373949,1762543838525,-218.53533746,0.00017521,2]
[393373951,1762543838535,-341.0,0.00017575,2]
[393373953,1762543838544,-900.0,0.000176,6]
[393373955,1762543838554,-341.0,0.00017606,2]
[393373957,1762543838564,-5959.66084484,0.00017609,2]
[393373959,1762543838574,-211.47738152,0.00017609,2]
[393373961,1762543838583,-341.0,0.00017621,2]
[393373963,1762543838593,-341.0,0.0001767,2]
[393373964,1762543838604,-893.85465609,0.00017697,2]
[393373966,1762543838613,-1000.0,0.000177,2]
[393373968,1762543838624,-900.0,0.000177,6]
[393373971,1762543838634,-690.54252194,0.000177,2]
[393373973,1762543838645,-5959.66084484,0.00017754,2]
[393373974,1762543838654,-211.47738152,0.00017754,2]
[393373976,1762543838665,-221.84453216,0.00017764,2]
[393373978,1762543838675,-1023.22717164,0.00017768,2]
[393373980,1762543838685,-1500.0,0.00017768,2]
[393373982,1762543838694,-1500.0,0.00017768,2]
[393373984,1762543838704,-500.0,0.00017773,2]
[393373986,1762543838714,-500.0,0.00017773,2]
[393373988,1762543838723,-500.0,0.00017773,2]
[393373990,1762543838733,-500.0,0.00017773,2]
[393373992,1762543838742,-500.0,0.00017773,2]
[393373994,1762543838751,-500.0,0.00017773,2]
[393373996,1762543838760,-500.0,0.00017773,2]
[393373998,1762543838771,-516.40310031,0.00017773,2]
[393374000,1762543838782,-500.0,0.00017773,2]
[393374002,1762543838791,-500.0,0.00017773,2]
[393374004,1762543838801,-568.88126658,0.00017773,2]
[393374006,1762543838811,-500.0,0.00017773,2]
[393374008,1762543838822,-500.0,0.00017773,2]
[393374010,1762543838832,-500.0,0.00017773,2]
[393374012,1762543838843,-500.0,0.00017773,2]
[393374014,1762543838860,-500.0,0.00017773,2]
[393374016,1762543838871,-500.0,0.00017773,2]
[393374018,1762543838882,-500.0,0.00017773,2]
[393374020,1762543838894,-256.0,0.00017785,2]
[393374022,1762543838904,-1234.23184451,0.0001779,2]
[393374024,1762543838915,-500.0,0.00017799,2]
[393374026,1762543838925,-330.00556252,0.00017799,2]
[393374028,1762543838935,-267.32001155,0.00017799,2]
[393374030,1762543838946,-153.79822759,0.00017799,2]
[393374032,1762543838962,-608.07378319,0.00017799,2]
[393374034,1762543838980,-500.0,0.00017799,2]
[393374036,1762543838991,-500.0,0.00017799,2]
[393374038,1762543839001,-193.47,0.00017799,2]
[393374040,1762543839011,-1000.0,0.000178,2]
[393374042,1762543839021,-465869.03969666,0.000178,2]
[393374044,1762543839034,-45585.17784436,0.000178,2]
[393374047,1762543839049,-64640.10067705,0.000178,2]
[393374049,1762543839060,-692.38207248,0.000178,2]
[393374052,1762543839075,-7315.82325008,0.000178,2]
[393374054,1762543839087,-1215.20249003,0.000178,2]
[393374056,1762543839102,-599.24625432,0.000178,2]
[393374059,1762543839114,-869.93486096,0.000178,2]
[393374061,1762543839125,-467.9342124,0.000178,2]
[393374157,1762543840095,-7959.3579491,0.000178,2]
[393374159,1762543840107,-46500.9873147,0.000178,2]
[393374162,1762543840118,-900.0,0.000178,6]
[393374164,1762543840127,-300.0,0.00017848,2]
[393374166,1762543840137,-3743.266,0.00017857,2]
[393374167,1762543840146,-262.07,0.00017857,2]
[393374169,1762543840155,-168.24179502,0.00017889,2]
[393374171,1762543840164,-150.0,0.00017889,2]
[393374173,1762543840173,-150.0,0.00017889,2]
[393374175,1762543840182,-154.5547493,0.00017889,2]
[393374177,1762543840191,-200.08208835,0.00017889,2]
[393374179,1762543840201,-150.0,0.00017889,2]
[393374181,1762543840209,-509.0,0.00017889,2]
[393374183,1762543840219,-150.0,0.00017889,2]
[393374185,1762543840228,-150.0,0.00017889,2]
[393374187,1762543840238,-454.0,0.00017889,2]
[393374189,1762543840250,-200.0,0.00017889,2]
[393374191,1762543840262,-200.0,0.00017889,2]
[393374193,1762543840272,-500.0,0.00017889,2]
[393374195,1762543840281,-200.0,0.00017889,2]
[393374197,1762543840292,-200.0,0.00017889,2]
[393374199,1762543840303,-500.0,0.00017889,2]
[393374201,1762543840312,-150.0,0.00017889,2]
[393374203,1762543840322,-150.0,0.00017889,2]
[393374205,1762543840333,-500.0,0.00017889,2]
[393374208,1762543840343,-150.0,0.00017889,2]
[393374209,1762543840353,-150.0,0.00017889,2]
[393374211,1762543840363,-150.0,0.00017889,2]
[393374213,1762543840372,-150.0,0.00017889,2]
[393374215,1762543840382,-150.0,0.00017889,2]
[393374217,1762543840391,-150.0,0.00017889,2]
[393374219,1762543840400,-500.0,0.00017889,2]
[393374221,1762543840410,-150.0,0.00017889,2]
[393374223,1762543840419,-151.0,0.00017897,2]
[393374225,1762543840429,-372.27294369,0.00017899,2]
[393374227,1762543840438,-162.75475319,0.000179,2]
[393374229,1762543840447,-256.4855155,0.000179,2]
[393374231,1762543840456,-1805.0,0.000179,6]
[393374233,1762543840466,-5959.66084484,0.000179,2]
[393374235,1762543840475,-162.21113264,0.000179,2]
[393374237,1762543840484,-211.47738152,0.000179,2]
[393374239,1762543840493,-903.12450102,0.000179,3]
[393374241,1762543840502,-9560.44544483,0.000179,2]
[393374243,1762543840511,-820.0,0.0001791,2]
[393374245,1762543840520,-1596.0,0.0001791,2]
[393374247,1762543840529,-812.0,0.0001791,2]
[393374249,1762543840538,-1273.0,0.0001791,2]
[393374251,1762543840547,-905.0,0.0001791,2]
[393374253,1762543840556,-1207.775,0.0001791,2]
[393374255,1762543840566,-3424.0,0.0001791,2]
[393374257,1762543840575,-574.0,0.0001791,2]
[393374259,1762543840585,-6659.0,0.0001791,2]
[393374261,1762543840594,-2142.0,0.0001791,2]
[393374263,1762543840605,-417.54862495,0.00017929,2]
[393374265,1762543840614,-500.0,0.00017973,2]
[393374267,1762543840623,-502.98565705,0.00017973,2]
[393374269,1762543840633,-500.51641195,0.00017973,2]
[393374271,1762543840642,-500.0,0.00017973,2]
[393374273,1762543840651,-500.0,0.00017973,2]
[393374275,1762543840660,-500.0,0.00017973,2]
[393374277,1762543840670,-500.0,0.00017973,2]
[393374279,1762543840679,-500.0,0.00017973,2]
[393374281,1762543840689,-500.0,0.00017973,2]
[393374283,1762543840699,-642.15273204,0.00017973,2]
[393374285,1762543840708,-500.0,0.00017973,2]
[393374287,1762543840717,-500.0,0.00017973,2]
[393374289,1762543840726,-1234.23184451,0.0001799,2]
[393374291,1762543840735,-1234.23184451,0.0001799,2]
[393374293,1762543840743,-151.0,0.00017997,2]
[393374295,1762543840753,-140616.35998566,0.00017999,2]
[393374297,1762543840766,-89308.55547124,0.00017999,2]
[393374299,1762543840775,-3336.9943361,0.00017999,2]
[393374301,1762543840784,-300.0,0.00017999,2]
[393374303,1762543840793,-54142.0794954,0.00017999,2]
[393374305,1762543840802,-300.0,0.00017999,2]
[393374307,1762543840811,-666.0,0.00017999,2]
[393374309,1762543840820,-300.0,0.00017999,2]
[393374311,1762543840830,-666.0,0.00017999,2]
[393374313,1762543840840,-300.0,0.00017999,2]
[393374315,1762543840851,-629.24326679,0.00017999,2]
[393374317,1762543840860,-300.0,0.00017999,2]
[393374319,1762543840870,-523933.76683078,0.00018,2]
[393374321,1762543840881,-6613070.08022405,0.00018,2]
[393374323,1762543840891,-140181.86021294,0.00018,2]
[393374325,1762543840900,-157.483214,0.00018,2]
[393374327,1762543840909,-174.849947,0.00018,2]
[393374329,1762543840918,-150.0,0.00018,2]
[393374331,1762543840927,-594.79762274,0.00018,2]
[393374333,1762543840936,-150.0,0.00018,2]
[393374335,1762543840946,-2982.86560419,0.00018,2]
[393374337,1762543840955,-150.0,0.00018,2]
[393374339,1762543840965,-2370.91853627,0.00018,2]
[393374341,1762543840974,-151.0,0.00018,2]
[393374343,1762543840983,-574.18999102,0.00018,2]
[393374345,1762543840992,-200.0,0.00018,2]
[393374347,1762543841001,-200.0,0.00018,2]
[393374349,1762543841010,-37513.98068585,0.00018,2]
[393374499,1762543842488,-3268.3379295,0.00018,2]
[393374517,1762543842649,-12472.73789864,0.00018,2]
[393374584,1762543843243,-277.14486753,0.00017004,2]
[393374586,1762543843255,-722.85513247,0.00018,2]
[393374648,1762543846208,-607.0,0.0001791,2]
[393374650,1762543846217,-71.189999,0.00018,2]
[393374652,1762543846532,-749.81015878,0.00018,2]
[393374653,1762543846588,-18416.3094619,0.00018,2]
[393374828,1762544278113,236.68,8.38e-05,2]
[393374860,1762544502034,-173.75,0.00016431,2]
[393374861,1762544512729,1000.0,0.00016431,2]
[393374863,1762544747882,-192.61015235,0.0001639,2]
[393374892,1762545032331,-300.0,0.00016489,2]
[393374893,1762545032340,-300.0,0.00016489,2]
[393374894,1762545032350,-1200.0,0.00016489,2]
[393374895,1762545032360,-4553.1392182,0.0001649,2]
[393374896,1762545032369,-826.18072289,0.0001649,2]
[393374897,1762545032378,-280.73157239,0.0001649,2]
[393374898,1762545032388,-8363.55,0.00016522,2]
[393374899,1762545032397,-153.46008724,0.00016573,2]
[393374900,1762545032407,-168.13628631,0.00016573,2]
[393374901,1762545032416,-500.0,0.00016573,2]
[393374902,1762545032426,-500.0,0.00016573,2]
[393374903,1762545032435,-500.0,0.00016573,2]
[393374904,1762545032444,-184.0,0.00016575,2]
[393374905,1762545032453,-550.0,0.00016588,2]
[393374906,1762545032463,-500.0,0.00016589,2]
[393374907,1762545032472,-500.0,0.00016589,2]
[393374908,1762545032481,-500.0,0.00016589,2]
[393374909,1762545032490,-249.07,0.00016589,2]
[393374910,1762545032499,-500.0,0.00016589,2]
[393374911,1762545032510,-500.0,0.00016589,2]
[393374912,1762545032519,-500.0,0.00016589,2]
[393374913,1762545032528,-500.0,0.00016589,2]
[393374914,1762545032537,-500.0,0.00016589,2]
[393374915,1762545032547,-500.0,0.00016589,2]
[393374916,1762545032558,-500.0,0.00016589,2]
[393374917,1762545032568,-437.07502368,0.00016589,2]
[393374918,1762545032578,-500.0,0.00016589,2]
[393374919,1762545032587,-500.0,0.00016589,2]
[393374920,1762545032596,-2000.0,0.00016589,2]
[393374921,1762545032607,-500.0,0.00016589,2]
[393374922,1762545032617,-500.0,0.00016589,2]
[393374923,1762545032631,-500.0,0.00016589,2]
[393374924,1762545032641,-500.0,0.00016589,2]
[393374925,1762545032650,-500.0,0.00016589,2]
[393374926,1762545032660,-228.77580714,0.00016589,2]
[393374927,1762545032671,-500.0,0.00016589,2]
[393374928,1762545032680,-500.0,0.00016589,2]
[393374929,1762545032690,-500.0,0.00016589,2]
[393374930,1762545032699,-500.0,0.00016589,2]
[393374931,1762545032712,-500.0,0.00016589,2]
[393374932,1762545032721,-500.0,0.00016589,2]
[393374933,1762545032731,-500.0,0.00016589,2]
[393374934,1762545032740,-500.0,0.00016589,2]
[393374935,1762545032749,-500.0,0.00016589,2]
[393374936,1762545032758,-500.0,0.00016589,2]
[393374937,1762545032767,-500.0,0.00016589,2]
[393374938,1762545032776,-500.0,0.00016589,2]
[393374939,1762545032786,-500.0,0.00016589,2]
[393374940,1762545032795,-500.0,0.00016589,2]
[393374941,1762545032804,-300.0,0.00016589,2]
[393374942,1762545032815,-500.0,0.00016589,2]
[393374943,1762545032825,-500.0,0.00016589,2]
[393374944,1762545032834,-500.0,0.00016589,2]
[393374945,1762545032843,-500.0,0.00016589,2]
[393374947,1762545032852,-500.0,0.00016589,2]
[393374949,1762545032862,-500.0,0.00016589,2]
[393374950,1762545032871,-500.0,0.00016589,2]
[393374951,1762545032879,-369.40413542,0.00016589,2]
[393374952,1762545032889,-500.0,0.00016589,2]
[393374953,1762545032898,-500.0,0.00016589,2]
[393374954,1762545032907,-500.0,0.00016589,2]
[393374955,1762545032917,-500.0,0.00016589,2]
[393374956,1762545032926,-500.0,0.00016589,2]
[393374957,1762545032935,-500.0,0.00016589,2]
[393374958,1762545032944,-463.47714673,0.0001659,2]
[393374959,1762545032960,-25296.15005327,0.0001659,2]
[393374960,1762545032969,-13178.19372591,0.0001659,2]
[393374961,1762545032980,-30529.57569659,0.0001659,2]
[393374962,1762545032991,-9675.2310988,0.0001659,2]
[393374963,1762545033002,-1007.63919984,0.0001659,2]
[393374964,1762545033013,-2960.24086707,0.0001659,2]
[393374965,1762545033025,-1157.73527463,0.0001659,2]
[393374966,1762545033044,-782.59605814,0.0001659,2]
[393374967,1762545033059,-810.0599729,0.0001659,2]
[393375008,1762545040316,-287.067,0.0001659,2]
[393375009,1762545040328,-1935.2275766,0.0001659,2]
[393375010,1762545040339,-357676.43352952,0.0001659,2]
[393375011,1762545040349,-1000.0,0.0001659,2]
[393375012,1762545040359,-6280.74,0.0001659,2]
[393375013,1762545040368,-7054.01,0.0001659,2]
[393375014,1762545040378,-1000.0,0.0001659,2]
[393375015,1762545040387,-4553.13921811,0.00016647,2]
[393375016,1762545040397,-826.1807228,0.00016647,2]
[393375017,1762545040406,-500.0,0.00016689,2]
[393375018,1762545040415,-500.0,0.00016689,2]
[393375019,1762545040425,-500.0,0.00016689,2]
[393375020,1762545040435,-585.15023547,0.00016689,2]
[393375021,1762545040444,-500.0,0.00016689,2]
[393375022,1762545040454,-588.39813314,0.00016689,2]
[393375023,1762545040464,-280.73157235,0.00016691,2]
[393375024,1762545040474,-666.51673486,0.0001671,2]
[393375025,1762545040483,-500.0,0.00016803,2]
[393375026,1762545040493,-4553.13921811,0.00016803,2]
[393375027,1762545040502,-826.1807228,0.00016803,2]
[393375028,1762545040511,-280.73157235,0.00016893,2]
[393375029,1762545040521,-4553.13921811,0.0001696,2]
[393375030,1762545040531,-826.1807228,0.0001696,2]
[393375031,1762545040540,-250.0,0.00017,2]
[393375032,1762545040550,-5000.0,0.00017017,2]
[393375033,1762545040560,-500.0,0.00017019,2]
[393375034,1762545040766,-573.60590585,0.00017019,2]
[393375035,1762545040777,-280.73157235,0.00017094,2]
[393375036,1762545040786,-532.2352,0.00017096,2]
[393375037,1762545040796,-2000.0,0.000171,6]
[393375038,1762545040805,-4553.13921811,0.00017117,2]
[393375039,1762545040815,-826.1807228,0.00017117,2]
[393375040,1762545040825,-361.8306267,0.00017121,2]
[393375041,1762545040834,-504.43139356,0.00017121,2]
[393375042,1762545040844,-4100.0,0.000172,6]
[393375043,1762545040854,-4553.13921811,0.00017273,2]
[393375045,1762545040863,-826.1807228,0.00017273,2]
[393375046,1762545040873,-280.73157235,0.00017296,2]
[393375048,1762545040883,-6200.0,0.000173,6]
[393375050,1762545040892,-8300.0,0.000174,6]
[393375051,1762545040901,-4553.13921811,0.0001743,2]
[393375052,1762545040911,-826.1807228,0.0001743,2]
[393375053,1762545040920,-348.62,0.00017443,2]
[393375054,1762545040930,-280.73157235,0.00017497,2]
[393375055,1762545040939,-10300.0,0.000175,6]
[393375056,1762545040948,-4553.13921811,0.00017587,2]
[393375057,1762545040958,-826.1807228,0.00017587,2]
[393375058,1762545040967,-2000.0,0.000176,6]
[393375059,1762545040976,-893.85465609,0.00017659,2]
[393375060,1762545040985,-1543.06,0.00017684,2]
[393375061,1762545040995,-280.73157235,0.00017699,2]
[393375062,1762545041004,-371.0,0.00017699,2]
[393375063,1762545041013,-2000.0,0.000177,6]
[393375064,1762545041023,-221.84453216,0.00017717,2]
[393375065,1762545041032,-4553.13921811,0.00017743,2]
[393375066,1762545041042,-826.1807228,0.00017743,2]
[393375067,1762545041051,-2000.0,0.000178,6]
[393375068,1762545041060,-2994.613,0.00017867,2]
[393375069,1762545041071,-209.656,0.0001787,2]
[393375070,1762545041081,-238.31815393,0.00017889,2]
[393375071,1762545041090,-150.0,0.00017889,2]
[393375072,1762545041100,-435.0,0.00017889,2]
[393375073,1762545041111,-150.0,0.00017889,2]
[393375074,1762545041120,-200.0,0.00017889,2]
[393375075,1762545041129,-150.0,0.00017889,2]
[393375076,1762545041138,-150.0,0.00017889,2]
[393375077,1762545041148,-150.0,0.00017889,2]
[393375078,1762545041157,-150.0,0.00017889,2]
[393375079,1762545041166,-150.0,0.00017889,2]
[393375080,1762545041177,-150.0,0.00017889,2]
[393375081,1762545041187,-488.0,0.00017889,2]
[393375082,1762545041196,-500.0,0.00017889,2]
[393375083,1762545041207,-323.31873588,0.000179,2]
[393375084,1762545041216,-2870.40835651,0.000179,2]
[393375085,1762545041226,-4553.13921811,0.000179,2]
[393375086,1762545041235,-2000.0,0.000179,6]
[393375087,1762545041245,-826.1807228,0.000179,2]
[393375088,1762545041254,-588.90691962,0.000179,2]
[393375089,1762545041265,-1297.68906116,0.000179,2]
[393375090,1762545041275,-199.89696611,0.000179,2]
[393375091,1762545041284,-280.73157235,0.000179,2]
[393375092,1762545041293,-161.17429234,0.00017973,2]
[393375093,1762545041303,-504.93289345,0.00017973,2]
[393375094,1762545041312,-500.0,0.00017973,2]
[393375095,1762545041322,-500.0,0.00017973,2]
[393375096,1762545041333,-426.53701258,0.00017973,2]
[393375097,1762545041342,-500.0,0.00017973,2]
[393375098,1762545041352,-500.0,0.00017973,2]
[393375099,1762545041361,-500.0,0.00017973,2]
[393375100,1762545041370,-159.99826602,0.00017973,2]
[393375101,1762545041380,-500.0,0.00017973,2]
[393375102,1762545041389,-330.87391277,0.00017973,2]
[393375103,1762545041398,-500.0,0.00017973,2]
[393375104,1762545041409,-160.00494127,0.00017973,2]
[393375105,1762545041418,-500.0,0.00017973,2]
[393375106,1762545041427,-500.28450458,0.00017973,2]
[393375107,1762545041436,-500.0,0.00017973,2]
[393375108,1762545041446,-500.0,0.00017973,2]
[393375109,1762545041456,-500.0,0.00017973,2]
[393375110,1762545041465,-500.0,0.00017973,2]
[393375111,1762545041474,-500.0,0.00017973,2]
[393375112,1762545041483,-155.22989953,0.00017973,2]
[393375113,1762545041493,-500.20326054,0.00017973,2]
[393375114,1762545041502,-216.20372532,0.00017973,2]
[393375115,1762545041511,-500.0,0.00017973,2]
[393375116,1762545041521,-461.39396557,0.00017973,2]
[393375117,1762545041531,-500.34822502,0.00017973,2]
[393375118,1762545041540,-503.38998104,0.00017973,2]
[393375119,1762545041549,-160.71773468,0.00017973,2]
[393375120,1762545041559,-500.50074512,0.00017973,2]
[393375121,1762545041569,-500.0,0.00017973,2]
[393375122,1762545041578,-500.0,0.00017973,2]
[393375123,1762545041588,-500.0,0.00017973,2]
[393375124,1762545041597,-500.0,0.00017973,2]
[393375125,1762545041607,-500.0,0.00017973,2]
[393375126,1762545041616,-280.33323234,0.00017973,2]
[393375127,1762545041626,-321.53200453,0.00017973,2]
[393375128,1762545041640,-165.77547705,0.00017973,2]
[393375129,1762545041649,-500.0,0.00017973,2]
[393375130,1762545041658,-167.36405018,0.00017973,2]
[393375131,1762545041668,-500.0,0.00017973,2]
[393375132,1762545041678,-500.0,0.00017973,2]
[393375133,1762545041687,-506.01385206,0.00017973,2]
[393375134,1762545041696,-500.13599134,0.00017973,2]
[393375135,1762545041706,-500.0,0.00017973,2]
[393375136,1762545041715,-205.92818258,0.00017973,2]
[393375137,1762545041724,-500.0,0.00017973,2]
[393375138,1762545041733,-500.0,0.00017973,2]
[393375139,1762545041742,-500.0,0.00017973,2]
[393375140,1762545041752,-500.0,0.00017973,2]
[393375141,1762545041761,-500.0,0.00017973,2]
[393375142,1762545041770,-500.0,0.00017973,2]
[393375143,1762545041779,-501.21360688,0.00017973,2]
[393375144,1762545041788,-500.0,0.00017973,2]
[393375145,1762545041797,-500.0,0.00017973,2]
[393375146,1762545041806,-500.0,0.00017973,2]
[393375147,1762545041817,-319.48,0.00017973,2]
[393375148,1762545041827,-150.0,0.00017973,2]
[393375149,1762545041836,-500.0,0.00017973,2]
[393375150,1762545041845,-169.5094317,0.0001799,2]
[393375151,1762545041854,-169.5094317,0.0001799,2]
[393375153,1762545041864,-169.5094317,0.0001799,2]
[393375155,1762545041872,-151.0,0.00017997,2]
[393375157,1762545041881,-300.0,0.00017999,2]
[393375159,1762545041890,-500.0,0.00017999,2]
[393375161,1762545041899,-300.0,0.00017999,2]
[393375163,1762545041908,-300.0,0.00017999,2]
[393375165,1762545041917,-360.43085075,0.00017999,2]
[393375167,1762545041926,-300.0,0.00017999,2]
[393375169,1762545041935,-500.0,0.00017999,2]
[393375171,1762545041945,-500.0,0.00017999,2]
[393375173,1762545041954,-500.0,0.00017999,2]
[393375175,1762545041963,-500.0,0.00017999,2]
[393375176,1762545041972,-500.0,0.00017999,2]
[393375178,1762545041981,-500.0,0.00017999,2]
[393375180,1762545041990,-500.0,0.00017999,2]
[393375183,1762545041999,-500.0,0.00017999,2]
[393375185,1762545042008,-500.0,0.00017999,2]
[393375187,1762545042017,-500.0,0.00017999,2]
[393375189,1762545042026,-590.9677229,0.00017999,2]
[393375191,1762545042035,-500.0,0.00017999,2]
[393375193,1762545042045,-500.0,0.00017999,2]
[393375195,1762545042054,-521.95,0.00017999,2]
[393375197,1762545042063,-238.49035495,0.00017999,2]
[393375198,1762545042072,-500.0,0.00017999,2]
[393375201,1762545042082,-466.35296461,0.00017999,2]
[393375203,1762545042091,-249.75932108,0.00017999,2]
[393375205,1762545042100,-285.82807367,0.00017999,2]
[393375207,1762545042109,-6272912.61008301,0.00018,2]
[393375209,1762545042121,-1549.5,0.00018,2]
[393375216,1762545042177,-10059.1602329,0.00018,2]
[393375232,1762545043433,-268.09428812,0.0001649,2]
[393375233,1762545043443,-97396.72987375,0.00018,2]
[393375234,1762545043546,-1553254.80553999,0.00018,2]
[393375235,1762545043558,-430608.18172758,0.00018,2]
[393375236,1762545043578,-590.48001,0.00018,2]
[393375237,1762545043592,-779.74274606,0.00018,2]
[393375267,1762545046412,-150.0,0.00017889,2]
[393375268,1762545046422,-130.45,0.00017889,2]
[393375269,1762545046550,-19.55,0.00017889,2]
[393375270,1762545046560,-257.21805939,0.000179,2]
[393375271,1762545046572,-453.0,0.000179,2]
[393375272,1762545046605,-601.04838671,0.000179,2]
[393375273,1762545046615,-339.71500898,0.00018,2]
[393375274,1762545046627,-2037.82884899,0.00018,2]
[393375275,1762545046663,-744.79989514,0.00018,2]
[393375276,1762545046674,-1844.73746463,0.00018,2]
[393375277,1762545046687,-467.88428273,0.00018,2]
[393375278,1762545046698,-250.0,0.00018,2]
[393375279,1762545046720,-4373.64623705,0.00018,2]
[393375280,1762545046731,-22282.7965308,0.00018,2]
[393375281,1762545046776,-1886.4,0.00018,2]
[393375282,1762545046787,-531.29917045,0.00018,2]
[393375299,1762545108593,485.56,0.00013699,2]
[393375301,1762545131705,-2565.8515,0.0001649,2]
[393375302,1762545131767,-3146.067,0.0001649,2]
[393375303,1762545132054,-1722.24,0.0001649,2]
[393375304,1762545132095,-6555.53,0.0001649,2]